fUSD/lending_fUSD_20260202
["ID","MTS","AMOUNT","RATE_DAILY","PERIOD"]
[404269491,1770019401964,-957.80546617,0.00011507,2]
[404269492,1770019402171,1229.84,0.00011507,2]
[404269493,1770019403147,6854.55906766,0.00011507,2]
[404269494,1770019403181,3145.43093234,0.00011507,2]
[404269495,1770019403224,150.99,0.00011507,2]
[404269496,1770019435114,-8619.2,0.00011417,2]
[404269497,1770019435223,-10000.01,0.00011417,2]
[404269498,1770019435348,-10000.01,0.00011417,2]
[404269499,1770019435472,-10000.01,0.00011417,2]
[404269500,1770019435609,-10000.01,0.00011417,2]
[404269501,1770019435740,-10000.01,0.00011417,2]
[404269502,1770019435862,-10000.01,0.00011417,2]
[404269503,1770019436008,-10000.01,0.00011417,2]
[404269504,1770019437890,-10000.01,0.00011417,2]
[404269505,1770019438011,-10000.01,0.00011417,2]
[404269506,1770019438405,-10000.01,0.00011417,2]
[404269507,1770019438422,-10000.01,0.00011417,2]
[404269508,1770019438439,-10000.01,0.00011417,2]
[404269509,1770019438531,-10000.01,0.00011417,2]
[404269510,1770019438702,-10000.01,0.00011417,2]
[404269511,1770019438859,-10000.01,0.00011417,2]
[404269512,1770019439022,-10000.01,0.00011417,2]
[404269513,1770019439164,-10000.01,0.00011417,2]
[404269514,1770019440694,163.0,0.00021,30]
[404269515,1770019443998,-300.0,0.00011416,2]
[404269516,1770019444067,-9400.01,0.00011417,2]
[404269517,1770019444129,-10000.01,0.00011417,2]
[404269518,1770019444251,-10000.01,0.00011417,2]
[404269519,1770019444376,-10000.01,0.00011417,2]
[404269520,1770019444504,-10000.01,0.00011417,2]
[404269521,1770019444688,-10000.01,0.00011417,2]
[404269522,1770019444830,-10000.01,0.00011417,2]
[404269523,1770019444950,-10000.01,0.00011417,2]
[404269524,1770019445107,-10000.01,0.00011417,2]
[404269525,1770019445254,-10000.01,0.00011417,2]
[404269526,1770019447060,-10000.01,0.00011417,2]
[404269527,1770019447179,-10000.01,0.00011417,2]
[404269528,1770019447306,-10000.01,0.00011417,2]
[404269529,1770019447450,-10000.01,0.00011417,2]
[404269530,1770019447607,-10000.01,0.00011417,2]
[404269531,1770019447770,-10000.01,0.00011417,2]
[404269532,1770019448231,-10000.01,0.00011417,2]
[404269533,1770019449110,-10000.01,0.00011417,2]
[404269534,1770019449132,-10000.01,0.00011417,2]
[404269535,1770019449151,-10000.01,0.00011417,2]
[404269536,1770019538558,500.0,0.00010724,2]
[404269537,1770019538928,416.29,0.00010809,2]
[404269538,1770019557238,1034.93,0.00011081,2]
[404269539,1770019618943,466.33,0.00010641,2]
[404269540,1770019631931,-545.792757,0.00011147,2]
[404269541,1770019631955,-823.23640712,0.00011203,2]
[404269542,1770019632222,151.0,0.00011035,2]
[404269545,1770019676729,-27.92366387,0.00011203,2]
[404269546,1770019676756,-126.50727471,0.00011316,2]
[404269547,1770019678565,-173.49272529,0.00011316,2]
[404269548,1770019678589,-117.93737095,0.00011317,2]
[404269549,1770019680708,-188.10702598,0.00011317,2]
[404269550,1770019680728,-1911.74535456,0.00011317,2]
[404269551,1770019682278,-300.0,0.00011316,2]
[404269552,1770019682303,-2685.8321676,0.00011317,2]
[404269553,1770019686796,-440.90782475,0.00011317,2]
[404269554,1770019688357,-1061.64190853,0.00011317,2]
[404269555,1770019693626,-500.00000017,0.00011317,2]
[404269556,1770019696593,-258.36218806,0.00011317,2]
[404269557,1770019699124,-252.76591589,0.00011317,2]
[404269558,1770019700651,-208.89990376,0.00011317,2]
[404269559,1770019751589,-431.94414854,0.00011217,2]
[404269655,1770019828604,2777.47,0.00010512,2]
[404269662,1770019832158,-101.58193449,0.00011217,2]
[404269663,1770019832167,-242.0,0.00011217,2]
[404269664,1770019832180,-300.0,0.00011242,2]
[404269665,1770019832190,-300.0,0.00011266,2]
[404269666,1770019832200,-533.52608303,0.00011267,2]
[404269667,1770019832209,-23962.96261168,0.00011316,2]
[404269668,1770019832221,-111198.44223953,0.00011316,2]
[404269669,1770019832233,-20464.11390294,0.00011316,2]
[404269670,1770019832244,-44637.45521673,0.00011316,2]
[404269675,1770019838725,-247.11059769,0.00011315,2]
[404269677,1770019838736,-262.74106387,0.00011315,2]
[404269679,1770019838748,-195.35403393,0.00011315,2]
[404269681,1770019838758,-500.0,0.00011315,2]
[404269683,1770019838768,-500.0,0.00011315,2]
[404269685,1770019838780,-500.0,0.00011315,2]
[404269687,1770019838790,-296.67430451,0.00011315,2]
[404269706,1770019840432,-203.32569549,0.00011315,2]
[404269707,1770019840443,-500.0,0.00011315,2]
[404269708,1770019840453,-366.87601314,0.00011315,2]
[404269709,1770019840465,-133.12398686,0.00011315,2]
[404269710,1770019840475,-500.0,0.00011315,2]
[404269711,1770019840484,-500.0,0.00011315,2]
[404269712,1770019840493,-500.0,0.00011315,2]
[404269713,1770019840503,-500.0,0.00011315,2]
[404269714,1770019840513,-500.0,0.00011315,2]
[404269715,1770019840523,-181.87601314,0.00011315,2]
[404269716,1770019840700,-1.7e-07,0.00011315,2]
[404269717,1770019840720,-318.12398669,0.00011315,2]
[404269718,1770019840730,-453.06661331,0.00011315,2]
[404269719,1770019840742,-46.93338669,0.00011315,2]
[404269720,1770019840751,-500.0,0.00011315,2]
[404269722,1770019840761,-500.0,0.00011315,2]
[404269724,1770019840772,-500.0,0.00011315,2]
[404269725,1770019840782,-500.0,0.00011315,2]
[404269726,1770019840791,-500.0,0.00011315,2]
[404269727,1770019840801,-500.0,0.00011315,2]
[404269728,1770019840811,-500.0,0.00011315,2]
[404269729,1770019840820,-575.33435962,0.00011315,2]
[404269730,1770019840831,-500.0,0.00011315,2]
[404269731,1770019840840,-500.0,0.00011315,2]
[404269732,1770019840850,-500.0,0.00011315,2]
[404269733,1770019840860,-500.0,0.00011315,2]
[404269734,1770019840869,-500.0,0.00011315,2]
[404269735,1770019840879,-500.0,0.00011315,2]
[404269736,1770019840890,-639835.96612912,0.00011316,2]
[404269737,1770019840899,-947.0,0.00011316,2]
[404269738,1770019840908,-300.0,0.00011316,2]
[404269739,1770019840917,-533.52608303,0.00011316,2]
[404269740,1770019840927,-1200.0,0.00011316,2]
[404269741,1770019840936,-13037.57491272,0.00011317,2]
[404269742,1770019840945,-171.64203726,0.00011317,2]
[404269743,1770019840955,-907.94554271,0.00011317,2]
[404269744,1770019840965,-907.94554271,0.00011317,2]
[404269745,1770019840974,-150.0,0.00011323,2]
[404269746,1770019840983,-150.10178686,0.00011324,2]
[404269747,1770019840993,-150.0,0.00011324,2]
[404269748,1770019841003,-150.0,0.00011324,2]
[404269749,1770019841012,-150.86853195,0.00011324,2]
[404269750,1770019841022,-150.8823375,0.00011324,2]
[404269751,1770019841032,-150.28399281,0.00011324,2]
[404269752,1770019841041,-150.0,0.00011324,2]
[404269753,1770019841051,-150.0,0.00011324,2]
[404269754,1770019841060,-150.0,0.00011324,2]
[404269755,1770019841069,-150.40929257,0.00011324,2]
[404269756,1770019841079,-500.0,0.00011324,2]
[404269757,1770019841088,-150.0,0.00011324,2]
[404269758,1770019841098,-152.39087668,0.00011324,2]
[404269759,1770019841107,-150.0,0.00011324,2]
[404269760,1770019841116,-500.0,0.00011324,2]
[404269761,1770019841126,-500.0,0.00011324,2]
[404269762,1770019841138,-500.0,0.00011324,2]
[404269763,1770019841147,-500.0,0.00011324,2]
[404269764,1770019841156,-500.0,0.00011324,2]
[404269765,1770019841166,-150.0,0.00011324,2]
[404269766,1770019841175,-500.0,0.00011324,2]
[404269767,1770019841185,-500.0,0.00011324,2]
[404269768,1770019841195,-150.0,0.00011324,2]
[404269769,1770019841205,-500.0,0.00011324,2]
[404269770,1770019841215,-500.0,0.00011324,2]
[404269771,1770019841225,-150.0,0.00011324,2]
[404269772,1770019841236,-500.0,0.00011324,2]
[404269773,1770019841246,-200.0,0.00011324,2]
[404269774,1770019841256,-150.0,0.00011379,2]
[404269775,1770019841266,-150.0,0.00011379,2]
[404269776,1770019841275,-150.0,0.00011379,2]
[404269777,1770019841285,-150.0,0.00011379,2]
[404269778,1770019841295,-155.94467862,0.00011379,2]
[404269779,1770019841306,-500.0,0.00011379,2]
[404269780,1770019841316,-280.54652626,0.00011379,2]
[404269781,1770019841326,-150.0,0.00011379,2]
[404269782,1770019841336,-500.0,0.00011379,2]
[404269783,1770019841347,-500.0,0.00011379,2]
[404269784,1770019841358,-500.0,0.00011379,2]
[404269785,1770019841368,-501.86439171,0.00011379,2]
[404269786,1770019841378,-504.83440669,0.00011379,2]
[404269787,1770019841395,-150.54573415,0.00011379,2]
[404269788,1770019841405,-500.0,0.00011379,2]
[404269789,1770019841415,-500.30543777,0.00011379,2]
[404269790,1770019841424,-206.16390379,0.00011379,2]
[404269791,1770019841434,-550.07470513,0.00011379,2]
[404269792,1770019841444,-500.0,0.00011379,2]
[404269793,1770019841454,-500.0,0.00011379,2]
[404269794,1770019841463,-500.0,0.00011379,2]
[404269795,1770019841473,-4666.39818809,0.00011406,2]
[404269796,1770019841483,-217.08812203,0.00011407,2]
[404269797,1770019841493,-151.0,0.00011414,2]
[404269798,1770019841504,-151.0,0.00011414,2]
[404269799,1770019841513,-2521980.43,0.00011417,2]
[404269800,1770019841524,-1471.593,0.00011417,2]
[404269801,1770019841533,-89295.3141,0.00011417,2]
[404269802,1770019841543,-6725.8362,0.00011417,2]
[404269803,1770019841557,-6799.4482,0.00011417,2]
[404269804,1770019841569,-429.39178028,0.00011417,2]
[404269805,1770019841579,-378.38431742,0.00011417,2]
[404269806,1770019841588,-3831.71620423,0.00011417,2]
[404269807,1770019841600,-184.97792066,0.00011417,2]
[404269808,1770019841610,-166.03571299,0.00011417,2]
[404269809,1770019841620,-200.0,0.00011434,2]
[404269810,1770019841630,-289.36328116,0.00011434,2]
[404269811,1770019841648,-150.0,0.00011434,2]
[404269812,1770019841658,-150.0,0.00011434,2]
[404269813,1770019841668,-512.2574055,0.00011434,2]
[404269814,1770019841678,-150.27829964,0.00011434,2]
[404269815,1770019841688,-477.85631038,0.00011434,2]
[404269816,1770019841698,-500.0,0.00011434,2]
[404269817,1770019841708,-500.0,0.00011434,2]
[404269818,1770019841717,-500.0,0.00011434,2]
[404269819,1770019841727,-500.0,0.00011434,2]
[404269820,1770019841960,-500.0,0.00011434,2]
[404269821,1770019841995,-10000.0,0.00011485,2]
[404269822,1770019842006,-150.0,0.00011488,2]
[404269823,1770019842016,-500.0,0.00011488,2]
[404269824,1770019842026,-248.75689772,0.00011488,2]
[404269825,1770019842036,-500.0,0.00011488,2]
[404269826,1770019842045,-500.0,0.00011488,2]
[404269827,1770019842055,-500.0,0.00011488,2]
[404269828,1770019842065,-2669.16,0.00011489,2]
[404269829,1770019842075,-6556.3711122,0.00011497,2]
[404269830,1770019842085,-500.0,0.0001151,2]
[404269831,1770019842095,-500.0,0.0001151,2]
[404269832,1770019842104,-500.0,0.0001151,2]
[404269833,1770019842114,-500.0,0.0001151,2]
[404269834,1770019842123,-500.0,0.0001151,2]
[404269835,1770019842133,-387.4955611,0.0001151,2]
[404269836,1770019842148,-200.0,0.0001151,2]
[404269837,1770019842157,-500.0,0.0001151,2]
[404269838,1770019842167,-500.0,0.0001151,2]
[404269839,1770019842176,-500.0,0.0001151,2]
[404269840,1770019842186,-151.0,0.0001151,2]
[404269841,1770019842195,-500.0,0.0001151,2]
[404269842,1770019842204,-151.0,0.0001151,2]
[404269843,1770019842213,-151.0,0.0001151,2]
[404269844,1770019842223,-500.0,0.0001151,2]
[404269845,1770019842232,-151.0,0.0001151,2]
[404269846,1770019842241,-151.0,0.0001151,2]
[404269847,1770019842252,-500.0,0.0001151,2]
[404269848,1770019842262,-151.0,0.0001151,2]
[404269849,1770019842271,-500.0,0.0001151,2]
[404269850,1770019842280,-200.0,0.0001151,2]
[404269851,1770019842290,-151.0,0.0001151,2]
[404269852,1770019842299,-151.0,0.0001151,2]
[404269853,1770019842309,-151.0,0.0001151,2]
[404269854,1770019842319,-151.0,0.0001151,2]
[404269855,1770019842329,-151.0,0.0001151,2]
[404269856,1770019842338,-151.0,0.0001151,2]
[404269857,1770019842348,-151.0,0.0001151,2]
[404269858,1770019842357,-151.0,0.0001151,2]
[404269859,1770019842367,-151.0,0.0001151,2]
[404269860,1770019842377,-151.0,0.0001151,2]
[404269861,1770019842390,-151.0,0.0001151,2]
[404269862,1770019842400,-151.0,0.0001151,2]
[404269863,1770019842410,-223.13740117,0.0001151,2]
[404269864,1770019842420,-23633.88,0.00011543,2]
[404269865,1770019842429,-15416.23,0.00011543,2]
[404269866,1770019842438,-291.47561802,0.00011543,2]
[404269867,1770019842448,-500.0,0.00011543,2]
[404269868,1770019842457,-306.67226287,0.00011543,2]
[404269869,1770019842467,-459.28369003,0.00011543,2]
[404269870,1770019842476,-500.0,0.00011543,2]
[404269871,1770019842486,-150.0,0.00011559,2]
[404269872,1770019842496,-344.0,0.00011573,2]
[404269873,1770019842506,-2128.69125432,0.00011596,2]
[404269874,1770019842516,-1852.42,0.00011597,2]
[404269875,1770019842526,-13849.27,0.00011597,2]
[404269876,1770019842535,-999.99,0.00011597,2]
[404269877,1770019842545,-9999.99,0.00011597,2]
[404269878,1770019842556,-14610.22,0.00011597,2]
[404269879,1770019842566,-9999.99,0.00011597,2]
[404269880,1770019842576,-14009.2,0.00011597,2]
[404269881,1770019842586,-9999.99,0.00011597,2]
[404269882,1770019842595,-9156.55,0.00011597,2]
[404269883,1770019842608,-150.99,0.00011597,2]
[404269884,1770019842617,-464.87,0.00011597,2]
[404269885,1770019842627,-9999.99,0.00011597,2]
[404269886,1770019842639,-9999.99,0.00011598,2]
[404269887,1770019842649,-4999.99,0.00011598,2]
[404269888,1770019842659,-1182.49,0.00011598,2]
[404269889,1770019842669,-188772.95,0.00011598,2]
[404269890,1770019842679,-499.99,0.00011598,2]
[404269891,1770019842689,-299.99,0.00011598,2]
[404269892,1770019842698,-500.0,0.00011598,2]
[404269893,1770019842708,-500.0,0.00011598,2]
[404269894,1770019842717,-1000.0,0.00011617,2]
[404269895,1770019842727,-9060.2137,0.00011617,2]
[404269896,1770019842737,-1609.0,0.00011639,2]
[404269897,1770019842747,-500.0,0.00011653,2]
[404269898,1770019842758,-500.0,0.00011653,2]
[404269899,1770019842767,-500.0,0.00011653,2]
[404269900,1770019842777,-1148.0,0.00011662,2]
[404269901,1770019842788,-383.0,0.00011708,2]
[404269902,1770019842797,-614.53737307,0.00011708,2]
[404269903,1770019842807,-792.71,0.0001182,2]
[404269904,1770019842816,-792.71,0.00011851,2]
[404269905,1770019842826,-792.71,0.00011882,2]
[404269906,1770019842836,-792.71,0.00011913,2]
[404269907,1770019842846,-500.0,0.00011927,2]
[404269908,1770019842855,-792.71,0.00011944,2]
[404269909,1770019842864,-792.71,0.00011975,2]
[404269910,1770019842873,-792.71,0.00012006,2]
[404269911,1770019842886,-792.71,0.00012037,2]
[404269912,1770019842895,-20357.73017596,0.00012046,2]
[404269913,1770019842906,-500.0,0.00012058,2]
[404269914,1770019842915,-792.71,0.00012068,2]
[404269915,1770019842925,-792.71,0.00012099,2]
[404269916,1770019842935,-4867.2,0.00012129,2]
[404269917,1770019842944,-792.71,0.00012131,2]
[404269918,1770019842954,-792.71,0.00012162,2]
[404269919,1770019842964,-792.71,0.00012193,2]
[404269920,1770019842974,-500.0,0.00012201,2]
[404269921,1770019842984,-792.71,0.00012224,2]
[404269922,1770019842994,-792.71,0.00012255,2]
[404269923,1770019843003,-907.94554264,0.00012257,2]
[404269924,1770019843013,-500.0,0.00012261,2]
[404269925,1770019843023,-792.71,0.00012286,2]
[404269926,1770019843033,-792.71,0.00012317,2]
[404269927,1770019843043,-300.0,0.00012323,2]
[404269928,1770019843052,-193.0,0.00012323,2]
[404269929,1770019843063,-300.0,0.00012339,2]
[404269930,1770019843072,-250.0,0.00012339,2]
[404269931,1770019843081,-300.0,0.00012339,2]
[404269932,1770019843091,-792.71,0.00012348,2]
[404269933,1770019843101,-3215.34,0.00012366,2]
[404269934,1770019843110,-344.87643987,0.00012366,2]
[404269935,1770019843120,-250.0,0.0001237,2]
[404269936,1770019843129,-255.0,0.00012376,2]
[404269937,1770019843145,-792.71,0.00012379,2]
[404269938,1770019843154,-240.0,0.00012406,2]
[404269939,1770019843163,-792.71,0.0001241,2]
[404269940,1770019843173,-500.21,0.00012421,2]
[404269941,1770019843183,-1924.0,0.00012431,2]
[404269942,1770019843192,-1680.0,0.00012448,2]
[404269943,1770019843203,-250.0,0.00012449,2]
[404269944,1770019843212,-1662.0,0.00012455,2]
[404269945,1770019843222,-500.0,0.00012475,2]
[404269946,1770019843231,-500.0,0.00012606,2]
[404269947,1770019843240,-500.0,0.00012749,2]
[404269948,1770019843250,-20357.73017596,0.00012775,2]
[404269949,1770019843261,-236.43,0.000128,2]
[404269950,1770019843271,-245.19,0.00012877,2]
[404269951,1770019843281,-306.04439692,0.00012963,2]
[404269952,1770019843290,-500.0,0.00013023,2]
[404269953,1770019843300,-151.0,0.00013135,2]
[404269954,1770019843309,-151.0,0.00013135,2]
[404269955,1770019843320,-256.05,0.00013135,2]
[404269956,1770019843330,-151.0,0.00013141,2]
[404269957,1770019843340,-151.0,0.00013141,2]
[404269958,1770019843350,-151.0,0.00013141,2]
[404269959,1770019843360,-500.0,0.00013154,2]
[404269960,1770019843369,-907.94554264,0.00013198,2]
[404269961,1770019843379,-500.0,0.00013297,2]
[404269962,1770019843393,-20357.73017596,0.00013504,2]
[404269963,1770019843402,-433.0,0.00013531,2]
[404269964,1770019843411,-500.0,0.00013571,2]
[404269965,1770019843420,-2351.0,0.00013692,2]
[404269966,1770019843429,-500.0,0.00013698,2]
[404269967,1770019843438,-500.0,0.00013698,2]
[404269968,1770019843454,-500.0,0.00013698,2]
[404269969,1770019843464,-500.0,0.00013698,2]
[404269970,1770019843473,-500.0,0.00013698,2]
[404269971,1770019843483,-500.0,0.00013698,2]
[404269972,1770019843493,-500.0,0.00013698,2]
[404269973,1770019843503,-500.0,0.00013698,2]
[404269974,1770019843512,-507.04117268,0.00013698,2]
[404269975,1770019843522,-500.0,0.00013698,2]
[404269976,1770019843532,-469.64985738,0.00013698,2]
[404269977,1770019843542,-516.16418367,0.00013698,2]
[404269978,1770019843554,-500.0,0.00013698,2]
[404269979,1770019843568,-500.0,0.00013698,2]
[404269980,1770019843578,-500.0,0.00013698,2]
[404269981,1770019843587,-500.0,0.00013698,2]
[404269982,1770019843599,-500.0,0.00013698,2]
[404269983,1770019843607,-500.0,0.00013698,2]
[404269984,1770019843617,-500.0,0.00013698,2]
[404269985,1770019843627,-500.0,0.00013698,2]
[404269986,1770019843642,-500.0,0.00013698,2]
[404269987,1770019843656,-500.0,0.00013698,2]
[404269988,1770019843666,-500.0,0.00013698,2]
[404269989,1770019843674,-500.0,0.00013698,2]
[404269990,1770019843684,-596.3421329,0.00013698,2]
[404269991,1770019843693,-500.0,0.00013698,2]
[404269992,1770019843703,-500.0,0.00013698,2]
[404269993,1770019843713,-500.0,0.00013698,2]
[404269994,1770019843722,-502.83428693,0.00013698,2]
[404269995,1770019843732,-586.19962979,0.00013698,2]
[404269996,1770019843742,-500.0,0.00013698,2]
[404269997,1770019843751,-500.0,0.00013698,2]
[404269998,1770019843761,-500.0,0.00013698,2]
[404269999,1770019843772,-244.52182497,0.00013698,2]
[404270000,1770019843781,-500.0,0.00013698,2]
[404270001,1770019843791,-500.0,0.00013698,2]
[404270002,1770019843802,-500.0,0.00013698,2]
[404270003,1770019843811,-500.0,0.00013698,2]
[404270004,1770019843822,-500.0,0.00013698,2]
[404270005,1770019843831,-208.77047208,0.00013698,2]
[404270006,1770019843841,-500.0,0.00013698,2]
[404270007,1770019843851,-500.0,0.00013698,2]
[404270008,1770019843861,-500.0,0.00013698,2]
[404270009,1770019843871,-500.0,0.00013698,2]
[404270010,1770019843881,-509.63945804,0.00013698,2]
[404270011,1770019843894,-500.0,0.00013698,2]
[404270012,1770019843903,-500.0,0.00013698,2]
[404270013,1770019843913,-500.0,0.00013698,2]
[404270014,1770019843923,-500.0,0.00013698,2]
[404270015,1770019843933,-500.0,0.00013698,2]
[404270016,1770019843942,-365.11189625,0.00013698,2]
[404270017,1770019843952,-500.0,0.00013698,2]
[404270018,1770019843962,-500.0,0.00013698,2]
[404270019,1770019843973,-500.0,0.00013698,2]
[404270020,1770019843982,-500.0,0.00013698,2]
[404270021,1770019843992,-500.0,0.00013698,2]
[404270022,1770019844002,-504.58121564,0.00013698,2]
[404270023,1770019844012,-500.0,0.00013698,2]
[404270024,1770019844022,-500.0,0.00013698,2]
[404270025,1770019844032,-500.0,0.00013698,2]
[404270026,1770019844043,-500.0,0.00013698,2]
[404270027,1770019844053,-193.34712914,0.00013698,2]
[404270028,1770019844063,-500.0,0.00013698,2]
[404270029,1770019844073,-500.0,0.00013698,2]
[404270030,1770019844083,-500.0,0.00013698,2]
[404270031,1770019844093,-500.0,0.00013698,2]
[404270032,1770019844102,-500.0,0.00013698,2]
[404270033,1770019844112,-512.55184272,0.00013698,2]
[404270034,1770019844121,-500.0,0.00013698,2]
[404270035,1770019844131,-500.0,0.00013698,2]
[404270036,1770019844144,-500.0,0.00013698,2]
[404270037,1770019844153,-500.0,0.00013698,2]
[404270038,1770019844163,-500.0,0.00013698,2]
[404270039,1770019844173,-500.0,0.00013698,2]
[404270040,1770019844183,-500.0,0.00013698,2]
[404270041,1770019844191,-500.0,0.00013698,2]
[404270042,1770019844201,-175.64646883,0.00013698,2]
[404270043,1770019844210,-526.72459335,0.00013698,2]
[404270044,1770019844219,-500.0,0.00013698,2]
[404270045,1770019844229,-500.0,0.00013698,2]
[404270046,1770019844239,-500.0,0.00013698,2]
[404270047,1770019844249,-500.0,0.00013698,2]
[404270048,1770019844258,-500.0,0.00013698,2]
[404270049,1770019844268,-500.0,0.00013698,2]
[404270050,1770019844277,-500.0,0.00013698,2]
[404270051,1770019844287,-500.0,0.00013698,2]
[404270052,1770019844296,-500.0,0.00013698,2]
[404270053,1770019844305,-500.0,0.00013698,2]
[404270054,1770019844315,-500.0,0.00013698,2]
[404270055,1770019844324,-500.0,0.00013698,2]
[404270056,1770019844334,-500.0,0.00013698,2]
[404270057,1770019844344,-500.0,0.00013698,2]
[404270058,1770019844353,-418.08001855,0.00013698,2]
[404270059,1770019844363,-500.0,0.00013698,2]
[404270060,1770019844372,-500.0,0.00013698,2]
[404270061,1770019844382,-500.0,0.00013698,2]
[404270062,1770019844395,-500.0,0.00013698,2]
[404270063,1770019844404,-500.0,0.00013698,2]
[404270064,1770019844413,-508.9071214,0.00013698,2]
[404270065,1770019844422,-500.0,0.00013698,2]
[404270066,1770019844431,-500.0,0.00013698,2]
[404270067,1770019844440,-500.0,0.00013698,2]
[404270068,1770019844449,-500.0,0.00013698,2]
[404270069,1770019844458,-500.0,0.00013698,2]
[404270070,1770019844467,-508.51455349,0.00013698,2]
[404270071,1770019844477,-500.0,0.00013698,2]
[404270072,1770019844486,-500.0,0.00013698,2]
[404270073,1770019844495,-500.0,0.00013698,2]
[404270074,1770019844504,-500.0,0.00013698,2]
[404270075,1770019844514,-500.0,0.00013698,2]
[404270076,1770019844524,-500.0,0.00013698,2]
[404270077,1770019844533,-327.30466151,0.00013698,2]
[404270078,1770019844544,-500.0,0.00013698,2]
[404270079,1770019844554,-500.0,0.00013698,2]
[404270080,1770019844563,-500.0,0.00013698,2]
[404270081,1770019844575,-500.0,0.00013698,2]
[404270082,1770019844585,-500.0,0.00013698,2]
[404270083,1770019844595,-500.0,0.00013698,2]
[404270084,1770019844605,-500.0,0.00013698,2]
[404270085,1770019844615,-500.0,0.00013698,2]
[404270086,1770019844626,-500.0,0.00013698,2]
[404270087,1770019844637,-500.0,0.00013698,2]
[404270088,1770019844647,-500.0,0.00013698,2]
[404270089,1770019844657,-502.51921833,0.00013698,2]
[404270090,1770019844667,-500.0,0.00013698,2]
[404270091,1770019844677,-500.0,0.00013698,2]
[404270092,1770019844688,-345.62119018,0.00013698,2]
[404270093,1770019844698,-500.0,0.00013698,2]
[404270094,1770019844707,-500.0,0.00013698,2]
[404270095,1770019844718,-500.0,0.00013698,2]
[404270096,1770019844728,-500.0,0.00013698,2]
[404270097,1770019844737,-500.0,0.00013698,2]
[404270098,1770019844747,-500.0,0.00013698,2]
[404270099,1770019844757,-500.0,0.00013698,2]
[404270100,1770019844766,-500.0,0.00013698,2]
[404270101,1770019844776,-500.0,0.00013698,2]
[404270102,1770019844786,-500.0,0.00013698,2]
[404270103,1770019844795,-500.0,0.00013698,2]
[404270104,1770019844804,-314.6762049,0.00013698,2]
[404270105,1770019844814,-2013.16,0.00013699,2]
[404270106,1770019844824,-1354.71,0.000137,2]
[404270107,1770019844833,-1354.71,0.000137,2]
[404270108,1770019844843,-1354.71,0.000137,2]
[404270109,1770019844853,-1354.71,0.000137,2]
[404270110,1770019844863,-1354.71,0.000137,2]
[404270111,1770019844872,-500.0,0.00013808,2]
[404270112,1770019844882,-500.0,0.00013845,2]
[404270113,1770019844895,-500.83637505,0.00013973,2]
[404270114,1770019844904,-446.80882298,0.00013973,2]
[404270115,1770019844913,-500.0,0.00013973,2]
[404270116,1770019844923,-500.0,0.00013973,2]
[404270117,1770019844933,-487.48417293,0.00013973,2]
[404270118,1770019844942,-170.36367963,0.00013973,2]
[404270119,1770019844952,-362.10232148,0.00013973,2]
[404270120,1770019844963,-500.0,0.00013973,2]
[404270121,1770019844973,-500.0,0.00013973,2]
[404270122,1770019844983,-164.70227396,0.00013973,2]
[404270123,1770019844992,-500.0,0.00013973,2]